Cogmind - Beta 15 @@@ ROGUE MODE // 2025.05.08 @ 16:32:45 Player: LEWiKK Result: Destroyed by JW-P3C(j) with Overtuned Pulse Rifle Performance ------------- Evolutions (0) 0 Regions Visited (3) 600 Robots Destroyed (2) 10 Value Destroyed (81) 81 Prototype IDs (12) 240 Alien Tech Used (0) 0 Bonus (800) 800 TOTAL SCORE: 1731 Bonus ------- Registered with UFD 300 Met Optimus in HQ 500 Cogmind --------- Core Integrity 0/250 Matter 300/300 Energy 100/100 System Corruption 2% Temperature Cool (48) Movement Core (350) Ox6 Location -8/Scraptown Parts ------- > --- POWER (1) -------- (None) > --- PROPULSION (2) --- Overtuned Titanium Leg > --- UTILITY (2) ------ Large Storage Unit > --- WEAPON (2) ------- (None) > --- INVENTORY (15) --- Improved Deuterium Engine Overtuned Titanium Leg Overtuned Titanium Leg Overtuned Titanium Leg Scrap Suit Scrap Suit 0b10 Decoder Chip [Looter] Target Analyzer Scrap Shield Peak State ------------ > --- POWER ------------ Angular Momentum Engine > --- PROPULSION ------- Overtuned Titanium Leg Overtuned Titanium Leg > --- UTILITY ---------- Large Storage Unit Hardened Medium Armor Plating > --- WEAPON ----------- Arc Projector Minigun > --- INVENTORY -------- Light Nuclear Core Aluminum Leg Aluminum Leg Overtuned Titanium Leg Overtuned Titanium Leg Scrap Suit 0b10 Decoder Chip [Looter] Improved Reaction Control System Scrap Shield EM Pulse Gun Light Assault Rifle Long-range Missile Launcher [Rating: 26] Favorites ----------- Power Angular Momentum Engine Engine Angular Momentum Engine Power Core Light Nuclear Core Propulsion Aluminum Leg Leg Aluminum Leg Wheel Subdweller Monowheel Utility Small Storage Unit Device Improved Reaction Control System Storage Small Storage Unit Protection Hardened Medium Armor Plating Weapon Light Assault Rifle Energy Gun EM Pulse Gun Ballistic Gun Light Assault Rifle Launcher Long-range Missile Launcher Build | -11 -10 -10 -8 ------- Run | Yrd Mat Sub Scr Slots Evolved . | . . . . Power . | . . . . Propulsion . | . . . . Utility . | . . . . Weapon . | . . . . Parts Attached 20 | 6 . 1 13 Power 3 | 1 . . 2 Engine 2 | 1 . . 1 Core 1 | . . . 1 Reactor . | . . . . Propulsion 7 | 2 . . 5 Treads . | . . . . Leg 6 | 2 . . 4 Wheel 1 | . . . 1 Hover . | . . . . Flight . | . . . . Utility 5 | 1 . 1 3 Device 1 | . . . 1 Storage 2 | 1 . . 1 Processor . | . . . . Hackware . | . . . . Protection 2 | . . 1 1 Artifact . | . . . . Weapon 5 | 2 . . 3 Energy Gun 2 | 1 . . 1 Energy Cannon . | . . . . Ballistic Gun 2 | 1 . . 1 Ballistic Cannon . | . . . . Launcher 1 | . . . 1 Special Weapon . | . . . . Impact Weapon . | . . . . Slashing Weapon . | . . . . Piercing Weapon . | . . . . Special Melee Weapon . | . . . . Unidentified Prototypes . | . . . . Corrupted Parts 1 | . . . 1 System Corruption 1 | . . . 1 Parts Lost 12 | . . . 12 Power 2 | . . . 2 Propulsion 3 | . . . 3 Utility 2 | . . . 2 Weapon 5 | . . . 5 Highest Loss Streak 7 | . . . 7 To Critical Strikes . | . . . . Average Backups 6 | 1 2 3 6 Power . | . 1 1 . Propulsion . | . . . . Utility 2 | . . . 2 Weapon 2 | . 1 1 2 Tool/Special . | . . . . Unused Backups 14 | . . . 14 Power 2 | . . . 2 Propulsion 6 | . . . 6 Utility 5 | . . . 5 Weapon 1 | . . . 1 Tool/Special . | . . . . Average Slot Usage (%) 96 | . 85 85 98 Engine 13 | . 14 14 13 Leg 25 | . 28 28 25 Wheel 2 | . . . 2 Storage 12 | . 14 2 13 Protection 12 | . . 11 13 Energy Gun 13 | . 14 14 13 Ballistic Gun 13 | . 14 14 13 Peak Build Rating 26 | 6 6 9 26 Average Rating 13 | 4 6 8 14 On Entrance 5 | . 6 6 9 Naked Turns . | . . . . Heaviest Build 48 | 13 13 26 48 Greatest Support 38 | 20 20 20 38 Greatest Overweight (x) 6 | 4 . 1 6 Average Overweight (x) . | . . . . Largest Inventory Capacity 15 | 8 8 8 15 Average Capacity 8 | 7 8 5 8 Most Carried 15 | 2 2 5 15 Average Carried 7 | 1 2 4 8 Final Capacity 15 | 8 8 5 15 Final Carried 12 | 2 2 5 12 Class Distribution -------------------- 100% | Mutant Dominant Class ---------------- Mutant | -10/Materials Mutant | -10/Subcaves Mutant | -8/Scraptown Resources | -11 -10 -10 -8 ----------- Run | Yrd Mat Sub Scr Matter Collected 474 | 233 . 37 204 Remotely . | . . . . Salvage Created 105 | . . . 105 Parts 8 | . . . 8 Haulers Intercepted . | . . . . Recyclers Shooed . | . . . . Parts Field Recycled . | . . . . Retrieved Matter . | . . . . Parts Self-Destructed . | . . . . Prevented . | . . . . Kills | -11 -10 -10 -8 ------- Run | Yrd Mat Sub Scr Combat Hostiles Destroyed 2 | . . . 2 Guns 2 | . . . 2 Classes Destroyed 2 | . . . 2 Federalist 1 | . . . 1 Scrapper 1 | . . . 1 Best Kill Streak 1 | . . . 1 Combat Bots Only 1 | . . . 1 Max Kills in Single Turn 1 | . . . 1 Gunslinging . | . . . . Exploded . | . . . . Melee . | . . . . Uniques/NPCs Destroyed . | . . . . Combat | -11 -10 -10 -8 -------- Run | Yrd Mat Sub Scr Hostile Shots Fired 167 | . . . 167 Missed 52 | . . . 52 Hits 115 | . . . 115 Projectile 115 | . . . 115 Critical Strikes 4 | . . . 4 Part Disruptions 2 | . . . 2 Damage Taken 1411 | . . . 1411 Core 268 | . . . 268 Absorbed by Shields . | . . . . Core Remaining (%) 100 | 100 . . . Volleys Fired 11 | . . . 11 Largest 2 | . . . 2 Hottest 80 | . . . 80 Shots Fired 22 | . . . 22 Gun 21 | . . . 21 Cannon . | . . . . Launcher 1 | . . . 1 Special . | . . . . Kinetic 11 | . . . 11 Thermal . | . . . . Explosive 1 | . . . 1 Electromagnetic 10 | . . . 10 Robot Hit Streak 10 | . . . 10 Robot Miss Streak 3 | . . . 3 Penetration Max . | . . . . Secondary Targets . | . . . . Shots Hit Robots 15 | . . . 15 Core Hits 6 | . . . 6 Critical Kills . | . . . . Critical Parts Destroyed . | . . . . Critical Strikes . | . . . . Melee Attacks . | . . . . Impact . | . . . . Slashing . | . . . . Piercing . | . . . . Sneak Attacks . | . . . . Combat Hostiles . | . . . . Follow-up Attacks . | . . . . Damage Inflicted 170 | . . . 170 Guns 170 | . . . 170 Cannons . | . . . . Explosions . | . . . . Melee . | . . . . Ramming . | . . . . Kinetic 83 | . . . 83 Thermal . | . . . . Explosive . | . . . . Electromagnetic 87 | . . . 87 Impact . | . . . . Slashing . | . . . . Piercing . | . . . . Highest Corruption 2 | . . . 2 Average Corruption 1 | . . . 1 Corruption Purged . | . . . . Corruption Blocked . | . . . . Overload Shots . | . . . . Overflow Damage . | . . . . Projectiles . | . . . . Explosions . | . . . . Melee . | . . . . Knockbacks . | . . . . Impact . | . . . . Kinetic . | . . . . Secondary . | . . . . Self-Inflicted Damage . | . . . . Shots . | . . . . Rammed . | . . . . Targets Rammed . | . . . . Kicked . | . . . . Crushed . | . . . . Highest Temperature 308 | . . . 308 Average Temperature 123 | . . . 123 Received Heat Transfer 778 | . . . 778 Effects 1 | . . . 1 Energy Bleed 1 | . . . 1 Siege Activations . | . . . . Martial Activations . | . . . . Shielding Activations . | . . . . Robots Disrupted . | . . . . Combat Hostiles . | . . . . Robots Corrupted . | . . . . Combat Hostiles . | . . . . Parts Fried . | . . . . Impact Corruptions . | . . . . Robots Melted . | . . . . Combat Hostiles . | . . . . Parts Melted . | . . . . Heat Transferred . | . . . . Parts Sabotaged . | . . . . Parts Stolen . | . . . . Parts Stripped . | . . . . Power Chain Reactions . | . . . . Alert | -11 -10 -10 -8 ------- Run | Yrd Mat Sub Scr Maximum Alert Level . | . . . . Low Security (%) 100 | 100 100 . . Level 1 . | . . . . Level 2 . | . . . . Level 3 . | . . . . Level 4 . | . . . . Level 5 . | . . . . High Security . | . . . . Max Security . | . . . . Peak Influence . | . . . . Initial . | . . . . Average . | . . . . Influence Increases . | . . . . Influence Decreases . | . . . . Squads Dispatched . | . . . . Investigation . | . . . . Extermination . | . . . . Reinforcement . | . . . . Assault . | . . . . Garrison . | . . . . Intercept . | . . . . Searches Triggered . | . . . . Construction Impeded . | . . . . Haulers Reinforced . | . . . . Active Scanning Responses . | . . . . Cargo Convoy Interrupts . | . . . . Stealth | -11 -10 -10 -8 --------- Run | Yrd Mat Sub Scr Distress Signals . | . . . . Communications Jammed . | . . . . Distress Signals . | . . . . Times Spotted 10 | . . 1 9 Peak Tracking Total 5 | . . 1 5 Tactical Retreats . | . . . . Traps | -11 -10 -10 -8 ------- Run | Yrd Mat Sub Scr Traps Triggered . | . . . . Indirectly . | . . . . Trap Hack Attempts . | . . . . Triggered . | . . . . Disarmed . | . . . . Reprogrammed . | . . . . Reused . | . . . . Traps Extracted . | . . . . Installed . | . . . . Triggered . | . . . . Machines | -11 -10 -10 -8 ---------- Run | Yrd Mat Sub Scr Machines Disabled 2 | . . . 2 Max in Single Turn 1 | . . . 1 Machines Repaired . | . . . . Machines Dismantled . | . . . . Machines Sabotaged . | . . . . Overloaded Fab Kills . | . . . . Hacking | -11 -10 -10 -8 --------- Run | Yrd Mat Sub Scr Machines Accessed 9 | . . . 9 Terminals . | . . . . Fabricators . | . . . . Repair Stations . | . . . . Recycling Units . | . . . . Scanalyzers . | . . . . Garrison Access . | . . . . Total Hacks 57 | . . . 57 Successful 57 | . . . 57 Failed . | . . . . Catastrophic . | . . . . Database Lockouts . | . . . . Manual . | . . . . Terminals . | . . . . Fabricators . | . . . . Repair Stations . | . . . . Recycling Units . | . . . . Scanalyzers . | . . . . Garrison Access . | . . . . Terminal Hacks 57 | . . . 57 Record 56 | . . . 56 Proto ID Catalog 1 | . . . 1 Fabricator Hacks . | . . . . Repair Station Hacks . | . . . . Recycling Unit Hacks . | . . . . Scanalyzer . | . . . . Garrison Access Hacks . | . . . . Unauthorized Hacks . | . . . . Terminals . | . . . . Fabricators . | . . . . Repair Stations . | . . . . Recycling Units . | . . . . Scanalyzers . | . . . . Garrison Access . | . . . . Data Cores Recovered . | . . . . Used . | . . . . Hacking Detections . | . . . . Full Trace Events . | . . . . Feedback Events . | . . . . Feedback Blocked . | . . . . Robot Schematics Acquired . | . . . . Robots Built . | . . . . Authchips . | . . . . Time . | . . . . Total Robot Build Rating . | . . . . Part Schematics Acquired . | . . . . Parts Built . | . . . . Authchips . | . . . . Time . | . . . . Total Part Build Rating . | . . . . Parts Repaired . | . . . . Time . | . . . . Parts Recycled . | . . . . Recycled Matter . | . . . . Retrieved Matter . | . . . . Retrieved Components . | . . . . Parts Scanalyzed . | . . . . Part Schematics Acquired . | . . . . Parts Damaged . | . . . . Bothacking | -11 -10 -10 -8 ------------ Run | Yrd Mat Sub Scr Used RIF Installer . | . . . . Robots Hacked . | . . . . Non-combat . | . . . . Combat . | . . . . Robot Hacks Applied . | . . . . Relay Couplers Released . | . . . . Fabnet Peak Effective % . | . . . . Robots Rewired . | . . . . Allies Hacked . | . . . . Hacks Repelled . | . . . . Allies | -11 -10 -10 -8 -------- Run | Yrd Mat Sub Scr Total Allies . | . . . . Largest Group . | . . . . Highest-Rated Group . | . . . . Highest-Rated Ally . | . . . . Total Orders . | . . . . Ally Attacks . | . . . . Total Damage . | . . . . Kills . | . . . . Allies Corrupted . | . . . . Allies Melted 7 | . . . 7 Intel | -11 -10 -10 -8 ------- Run | Yrd Mat Sub Scr Active Infowar (turns) . | . . . . Robot Analysis Total . | . . . . Derelict Logs Recovered 3 | . . 1 2 Drone Launches . | . . . . Drone Recoveries . | . . . . Exploration | -11 -10 -10 -8 ------------- Run | Yrd Mat Sub Scr Turns Passed 3137 | 55 45 284 2753 Spaces Moved 1795 | 31 36 131 1597 Core 7 | 6 . . 1 Treads . | . . . . Legs 1338 | 25 36 131 1146 Wheels 450 | . . . 450 Hover . | . . . . Flight . | . . . . Fastest Speed 50 | 50 120 120 100 Average Speed 166 | 144 120 176 167 Slowest Speed 350 | 250 120 190 350 Overloaded Moves . | . . . . Propulsion Burnouts . | . . . . Robots Hopped . | . . . . Potential Cave-ins . | . . . . Cave-ins Triggered . | . . . . Exploration Rate (%) 29 | 4 12 8 92 Regions Visited 3 Branch Regions 2 Pre-discovered Areas . | . . . . Known Exits Taken . | . . . . Unknown Exits Taken 3 | 1 1 1 . Scrap Searched 4 | . . . 4 Spaces Dug . | . . . . Terrain Destroyed 11 | . . . 11 Melee . | . . . . Projectile . | . . . . AOE 11 | . . . 11 Terrain Rammed . | . . . . Walls Destroyed . | . . . . Machines Disabled . | . . . . Actions | -11 -10 -10 -8 --------- Run | Yrd Mat Sub Scr Total 1925 | 38 38 185 1664 Wait 52 | . 3 49 . Move 1792 | 30 35 130 1597 Hop . | . . . . Pick Up 27 | 2 . 3 22 Fast Attach 7 | 6 . . 1 Attach 12 | . . 1 11 Detach 3 | . . 1 2 Swap 6 | . . . 6 Drop 14 | . . . 14 Fire 11 | . . . 11 Melee . | . . . . Ram . | . . . . Kick . | . . . . Crush . | . . . . Escape Stasis . | . . . . Rewire . | . . . . Trap . | . . . . Miscellaneous 1 | . . 1 . Route ------- -11/Scrapyard -10/Materials -10/Subcaves -8/Scraptown (discovered 2 exits: [*Fac x2]) History --------- Turn | Location | Event 13 | -11/Scrapyard | Discovered new exit (range 15) 56 | -11/Scrapyard | Entered Materials 57 | -10/Materials | Met a group of wandering Federalists 96 | -10/Materials | Discovered new exit (range 5) 101 | -10/Materials | Entered Subcaves 101 | -10/Subcaves | Accompanied by 3 allies 101 | -10/Subcaves | Learned 2 Materials zone layouts 102 | -10/Subcaves | Continued accompanying wandering Federalists (4) 315 | -10/Subcaves | Build established: Mutant 380 | -10/Subcaves | Wandering Federalist uncovered a shortcut to Scraptown 385 | -10/Subcaves | Entered Scraptown 608 | -8/Scraptown | Heard Great Nut preacher, LISTEN AND RECITE! 624 | -8/Scraptown | Visited Symbiants 651 | -8/Scraptown | Visited Cyclists 716 | -8/Scraptown | Visited UFD Registry 716 | -8/Scraptown | Registered with UFD as "Powercutter" 741 | -8/Scraptown | Entered Cyclist Reading Room 774 | -8/Scraptown | Visited Fellowship of the Rings 782 | -8/Scraptown | Visited IN-MT5's Study 818 | -8/Scraptown | Visited Comm Corps 864 | -8/Scraptown | Visited Cave Peace 908 | -8/Scraptown | Visited Shadow of the Wyrm 967 | -8/Scraptown | Scanned Subdweller tech in exchange for log data 970 | -8/Scraptown | Learned Factory trap positions 971 | -8/Scraptown | Learned 8 Factory zone layouts 991 | -8/Scraptown | Discovered new exit (range 5) 1038 | -8/Scraptown | Guru changed UFD alias to "Shadowwalker" 1841 | -8/Scraptown | Visited Curators Association 1896 | -8/Scraptown | Visited Infowarlord's Domain 1969 | -8/Scraptown | Visited Junk Repository 2121 | -8/Scraptown | Visited Science Guys 2207 | -8/Scraptown | Visited Abandonware Association 2230 | -8/Scraptown | Learned abandonware demo "REPAIR.EXE" 2385 | -8/Scraptown | Discovered new exit (range 3) 2536 | -8/Scraptown | Met Optimus 2536 | -8/Scraptown | Accepted into 0bPrime 2676 | -8/Scraptown | Visited Research Penetration Think Tank 2718 | -8/Scraptown | Visited Botcube Research 2833 | -8/Scraptown | Civil war broke out across Scraptown 2913 | -8/Scraptown | Found Scrap Suit 2957 | -8/Scraptown | Lost 6 allies 3019 | -8/Scraptown | Lost 4 parts (1p1u2w) 3045 | -8/Scraptown | Optimus destroyed in the chaos of civil war 3050 | -8/Scraptown | Found Scrap Suit 3080 | -8/Scraptown | Core integrity fell below 50% 3104 | -8/Scraptown | Lost 5 allies 3126 | -8/Scraptown | Core integrity fell below 20% 3134 | -8/Scraptown | Lost 7 parts (1p2n1u3w) 3138 | -8/Scraptown | Destroyed by JW-P3C(j) with Overtuned Pulse Rifle Last Messages --------------- Acquired 10 matter. Imp. Reaction Control System destroyed. Lrn. Missile Launcher destroyed. Critical hit (Burn: +50). WB-A46(j) heat short circuits Lgt. Deuterium Engine. WB-A46(j): "Can't we all just get along?" Lgt. Assault Rifle destroyed. Lgt. Nuclear Core destroyed. Ovr. Titanium Leg destroyed. Penetrated by Bolt. Bolt penetrates Machine. Acquired 10 matter. G2-TV8(E) heat damages Ovr. Treads. G2-TV8(E) destroyed. Penetrated by Bolt. YC-VNV(j) suffers critical hit (Burn). YC-VNV(j) overheating. 07-8I7(j) destroyed. Ovr. Titanium Leg destroyed. Critical hit (Burn: +50). Map ----- +----------------------------------------------------+ | ?????????????????????????????????????????????????? | | ?????????????????????????????????????????????????? | | ?????????????????????????????????????????????????? | | ???????????????????##??###############???####????? | | ???????????????????"""?#"""##""|##"""#??## ##???? | | ??????????????????#"" ##""!##""|##!!"#### ####& | | ??????????????????#"" !%= ! /== | | ??????????????????# * /[%=% | | ??????????????????####################### [![##### | | ????????????????????????????????????????##!%##???? | | ??????##???##????????????????????????????#!!###### | | ??????#"###"#????????????????????????????#%=#""""" | | ???#### "[" ####?????????????????????????#!!#""""" | | ???#" """ "#????#######??????????????#=!#""" | | ????#"" ""#?????# #??????????????# #" | | ????#!" "/#?????# ! #??????????????# #"" | | ???##"" ""##????# #???############ #""""[ | | ???#" "#????# #???#!]#!!=# !## """%[! | | ???##"" ""##????# #???#[[# [ #!|##! #""=! | | ????#[" "]#?????# #???#[ # # ##% #""!! | | ???##"" ""##????# !! #???# ! ##= # !%= | | ???#" "#????# = #???# *[! # | | ???######### ###????#### ##???######%### # ### | | ???????##### ########### ###########!## %! ### | | ???????#"""[! !=[!"*""" """" "" "" [ [! "## | | ???????#" =%[%j![[%!= ! @%[ !%= p! %!=%="## | | ???????#" *[*!!%===*% %= !=[ !* [ h% %! =! ## | | ???????#" [=[*=!%[/ !!!=%= !% j! = [ ## | | ???????#" =[j!=%!**==%=%* = [%= %!=%!!# | | ???#####" !%%!%=!%%/ !=! = %!=[% | | ???#"""" =!!""!""! "" " " """"" """ """ = =%!## | | ???#"""" ! """=""""""""""""""""""""""""= %!*%## | | ???#"""" ""#[#### ################""=![!==## | | ???#"""" ""# ##????????#""=!!%=*## | | ???#"""" ""# X"#????????#""[!%[![#? | | ##?#"""" ""# "" "" ##????????#"% *=[%!#? | | "#"#"""" ""# "" "" X"#??????### /! !%==#? | | """#"""" ""# " " ######=##%#"%* =%"## | | "#?#####" "" "" [& ![![![!! != =% | | ##?????#" "" "" [%*= %/% ! ## | | ########" ""# " " #########!#" "#? | | ""# "" "" ""#??????###""[ "#? | | ""# "" "" ##????????#""% #? | | ""# X"#????????#""! "#? | | ""# ##????????#"" "#? | | ""###### ################"" =%!"#? | | """""""""""""""" """ """"""" [%*["## | | """"""""""""""" " !"! """ =[ | | =%!/*%= "## | | !% !!=%%= "#? | +----------------------------------------------------+ Best States ------------- Heat Dissipation 25 Energy Generation 18 Energy Capacity 300 Matter Stores 300 Matter Capacity 300 Sight Range 16 Terrain Scan Density 10 Armor Coverage 800 Evasion (%) 65 Item Schematics ----------------- None Robot Schematics ------------------ None Fabricated ------------ Nothing Repaired ---------- Nothing Alien Tech Used ----------------- None Achievements -------------- None Challenges ------------ None Game ------ Seed IonicShieldKit Manual? 0 Play Time 00:43:06 Cumulative 82.2 hours Start 2025.05.08 @ 15:43:37 End 2025.05.08 @ 16:32:45 Sessions 1 Manual Loads 0 Difficulty Rogue Special Mode None Game No. 85 Rogue 85 Adventurer 0 Explorer 0 Win Type - Total 2 Types 1/0/0/1/0/0/0/0/0/0 Lore% 57 Gallery% 43 Achievement% 44 Wizard Run 0 Options --------- Layout 1 ASCII 0 Keyboard 1 Movement Numpad Keybinds 0 Fullscreen 2 Font 20/SmallcapsGlow Map View 54x42 Zoom Use 0% Tactical HUD 0 Map Filters NONE Filters NONE Steam 1 RUN: 867b2870-342d-4fe5-82de-ef8ca9a2f5e8